bitfinex-derivatives/quotes_SOLF0:USTF0_20250516
["timestamp","ask_amount","ask_price","bid_price","bid_amount"]
[1747379972526,122.42,172.13,172.03,1.9709]
[1747379972724,5.8096,172.09,172.06,5.8103]
[1747379973325,5.8093,172.1,172.07,5.8101]
[1747379973528,122.42,172.13,172.07,5.8101]
[1747379974027,5.8096,172.09,172.03,1.9709]
[1747379974733,5.8096,172.09,172.06,5.8105]
[1747379976229,5.8093,172.1,172.07,5.8101]
[1747379976431,122.42,172.13,172.03,1.9709]
[1747379976628,61.08,172.13,172.03,1.9709]
[1747379976833,5.8087,172.12,172.09,5.8095]
[1747379977022,122.3,172.13,172.09,5.8095]
[1747379977733,5.8091,172.11,172.08,5.8098]
[1747379978030,5.8091,172.11,172.03,1.9709]
[1747379978330,5.8086,172.12,172.03,1.9709]
[1747379978931,5.8086,172.12,172.09,5.8093]
[1747379979135,5.8086,172.12,172.03,1.9709]
[1747379979526,5.8089,172.11,172.03,1.9709]
[1747379979726,122.3,172.13,172.03,1.9709]
[1747379980323,5.8087,172.12,172.03,1.9709]
[1747379980534,5.8087,172.12,172.09,5.8094]
[1747379981233,122.3,172.13,172.03,1.9709]
[1747379981932,5.8098,172.09,172.03,1.9709]
[1747379982135,122.3,172.13,172.03,1.9709]
[1747379982335,5.8085,172.12,172.09,5.8093]
[1747379982829,5.8086,172.12,172.06,61.14]
[1747379983035,61.24,172.14,172.06,61.14]
[1747379983432,61.22,172.14,172.06,61.14]
[1747379983629,61.14,172.16,172.07,61.22]
[1747379983928,128.1674,172.16,172.12,5.8083]
[1747379984129,122.46,172.16,172.07,63.1431]
[1747379984435,61.32,172.16,172.07,63.1431]
[1747379985138,67.1272,172.16,172.13,5.808]
[1747379985471,61.32,172.16,172.07,63.1431]
[1747379985935,67.1273,172.16,172.13,5.808]
[1747379986237,67.1273,172.16,172.1,61.14]
[1747379987037,67.1273,172.16,172.13,5.8079]
[1747379987233,61.32,172.16,172.1,61.14]
[1747379988129,61.32,172.16,172.13,5.808]
[1747379988435,67.1273,172.16,172.13,5.808]
[1747379988737,67.1273,172.16,172.1,61.14]
[1747379989538,67.1273,172.16,172.13,5.808]
[1747379989739,67.1273,172.16,172.1,61.14]
[1747379989940,67.1273,172.16,172.13,5.808]
[1747379990432,67.1273,172.16,172.1,61.14]
[1747379990633,61.32,172.16,172.14,5.8078]
[1747379991240,67.1272,172.16,172.14,5.8078]
[1747379991438,67.1272,172.16,172.1,61.14]
[1747379992036,61.32,172.16,172.13,5.8079]
[1747379992338,5.8073,172.16,172.13,5.8079]
[1747379992542,269.16567118,172.17,172.13,5.8079]
[1747379992742,269.16567118,172.17,172.1,61.14]
[1747379993040,5.8074,172.16,172.1,61.14]
[1747379993339,5.8074,172.16,172.13,5.808]
[1747379993535,274.97267118,172.17,172.1,69.34040961]
[1747379993735,269.16567118,172.17,172.1,69.34040961]
[1747379994038,5.8074,172.16,172.1,69.34040961]
[1747379994238,5.8074,172.16,172.13,5.8078]
[1747379994941,5.8075,172.15,172.13,5.8078]
[1747379995333,269.16567118,172.17,172.13,5.8078]
[1747379995640,5.8073,172.16,172.13,5.8078]
[1747379996643,269.16567118,172.17,172.1,69.34040961]
[1747379996834,61.0,172.17,172.1,69.34040961]
[1747379997145,61.0,172.17,172.16,5.8071]
[1747379998642,122.64,172.19,172.17,5.8068]
[1747379999042,122.64,172.19,172.11,10.15810961]
[1747379999243,122.64,172.19,172.11,1.9577]
[1747380000138,5.8069,172.17,172.11,1.9577]
[1747380001246,5.8066,172.18,172.11,1.9577]
[1747380001447,122.64,172.19,172.11,1.9577]
[1747380001649,5.8067,172.18,172.11,1.9577]
[1747380001849,122.78,172.19,172.17,5.8067]
[1747380002040,122.78,172.19,172.11,1.9577]
[1747380002552,565.0717,172.22,172.13,8.20040961]
[1747380002756,61.12,172.25,172.16,8.20040961]
[1747380003047,62.0,172.24,172.16,8.20040961]
[1747380003251,123.1,172.25,172.16,8.20040961]
[1747380003441,5.8039,172.26,172.16,8.20040961]
[1747380003844,68.1839,172.26,172.16,8.20040961]
[1747380004145,62.38,172.26,172.19,8.20040961]
[1747380004349,62.38,172.26,172.21,5.8052]
[1747380004545,62.38,172.26,172.18,61.12]
[1747380004941,61.12,172.28,172.18,61.12]
[1747380005148,5.8047,172.24,172.18,61.12]
[1747380005442,62.7,172.26,172.19,5.8059]
[1747380005640,62.7,172.26,172.17,69.32040961]
[1747380005836,5.8051,172.23,172.17,69.32040961]
[1747380006047,62.68,172.22,172.12,61.12]
[1747380006245,62.68,172.21,172.12,61.12]
[1747380006755,5.8064,172.19,172.15,5.8073]
[1747380007051,5.8064,172.19,172.12,61.12]
[1747380007052,62.68,172.21,172.12,61.12]
[1747380007248,5.8068,172.18,172.14,5.8077]
[1747380007549,62.68,172.21,172.12,61.12]
[1747380007748,62.68,172.21,172.14,5.8077]
[1747380008251,5.8066,172.18,172.14,5.8077]
[1747380008550,62.68,172.21,172.12,61.12]
[1747380008743,5.807,172.17,172.12,61.12]
[1747380008953,5.807,172.17,172.12,66.9282]
[1747380009251,62.68,172.21,172.12,66.9282]
[1747380009450,62.68,172.21,172.13,5.8081]
[1747380009748,62.68,172.21,172.12,61.12]
[1747380009949,5.8069,172.17,172.12,61.12]
[1747380010644,5.8069,172.17,172.13,5.8081]
[1747380010950,5.8066,172.18,172.12,61.12]
[1747380011248,62.68,172.21,172.13,5.8081]
[1747380011449,5.8067,172.18,172.13,5.8081]
[1747380011646,5.8067,172.18,172.12,61.12]
[1747380011853,5.8067,172.18,172.14,5.8077]
[1747380012046,62.68,172.21,172.12,61.12]
[1747380012250,62.68,172.21,172.13,5.8079]
[1747380012452,62.68,172.21,172.12,61.12]
[1747380012652,63.08,172.2,172.12,61.12]
[1747380013046,68.886,172.2,172.12,61.12]
[1747380013352,68.886,172.2,172.16,5.8069]
[1747380013549,63.16,172.21,172.13,8.20040961]
[1747380014156,68.9655,172.21,172.13,8.20040961]
[1747380014453,63.14,172.21,172.13,8.20040961]
[1747380014654,5.8061,172.2,172.16,5.8069]
[1747380014852,63.14,172.21,172.12,69.32040961]
[1747380015352,63.2,172.21,172.12,69.32040961]
[1747380015551,66.9253,172.22,172.12,69.32040961]
[1747380015552,130.1253,172.22,172.12,69.32040961]
[1747380015853,124.32,172.22,172.19,5.8059]
[1747380016051,124.32,172.22,172.12,69.32040961]
[1747380016853,61.12,172.22,172.12,69.32040961]
[1747380017053,61.12,172.22,172.2,5.8056]
[1747380017248,61.12,172.22,172.15,8.20040961]
[1747380017646,61.12,172.22,172.21,5.8055]
[1747380017849,63.14,172.23,172.16,62.82]
[1747380018250,62.82,172.26,172.16,62.82]
[1747380018251,63.22,172.24,172.16,62.82]
[1747380018449,62.82,172.26,172.16,64.7705]
[1747380018653,126.04,172.26,172.18,8.20040961]
[1747380018946,131.8438,172.26,172.23,5.8046]
[1747380019147,126.04,172.26,172.16,64.7705]
[1747380019349,5.8043,172.25,172.22,5.805]
[1747380019648,126.04,172.26,172.17,8.20040961]
[1747380020055,5.8041,172.25,172.22,5.8049]
[1747380020356,126.04,172.26,172.16,64.7705]
[1747380020555,5.805,172.23,172.2,5.8055]
[1747380020756,126.04,172.26,172.16,64.7705]
[1747380021257,5.8055,172.21,172.16,62.82]
[1747380021758,5.73215934,172.21,172.18,5.8062]
[1747380022015,63.22,172.22,172.16,62.82]
[1747380022557,63.22,172.22,172.2,5.8056]
[1747380023261,69.0252,172.22,172.19,5.8061]
[1747380024058,63.22,172.22,172.19,5.8061]
[1747380024258,5.8055,172.21,172.18,5.8064]
[1747380024665,5.8055,172.21,172.16,62.82]
[1747380024963,69.0253,172.22,172.16,62.82]
[1747380025266,5.8063,172.19,172.12,8.20040961]
[1747380025565,126.04,172.22,172.12,71.02040961]
[1747380025753,5.8064,172.19,172.16,5.8069]
[1747380025953,5.8064,172.19,172.12,71.02040961]
[1747380026153,126.04,172.22,172.12,71.02040961]
[1747380027665,5.8058,172.2,172.12,71.02040961]
[1747380027969,62.82,172.22,172.12,71.02040961]
[1747380028262,62.82,172.35,172.21,8.20040961]
[1747380028466,62.82,172.39,172.22,68.6823]
[1747380028661,65.56,172.36,172.28,6.81874666]
[1747380028868,37.33480464,172.4,172.27,65.5]
[1747380029069,24.72100464,172.4,172.27,65.5]
[1747380029366,24.72100464,172.4,172.38,5.7997]
[1747380030164,84.33299734,172.44,172.33,91.54]
[1747380030372,84.33299734,172.44,172.34,91.54]
[1747380030666,84.33299734,172.44,172.37,6.81359325]
[1747380030855,84.33299734,172.44,172.34,91.54]
[1747380031965,93.1,172.48,172.34,91.54]
[1747380032867,1.9333,172.49,172.34,91.54]
[1747380033172,95.58,172.55,172.47,5.7967]
[1747380033364,1.9333,172.57,172.4,110.61948973]
[1747380033565,1.9333,172.57,172.44,10.89948973]
[1747380033566,5.7938,172.56,172.44,10.89948973]
[1747380033871,106.8599,172.57,172.4,99.72]
[1747380033872,106.8599,172.57,172.42,10.89948973]
[1747380034164,107.3999,172.57,172.47,5.7965]
[1747380034474,107.3999,172.57,172.4,99.72]
[1747380034877,107.3999,172.57,172.41,10.89948973]
[1747380035070,107.3999,172.57,172.4,110.61948973]
[1747380035578,107.3999,172.57,172.4,99.72]
[1747380035880,113.82,172.61,172.4,99.72]
[1747380036079,3.8957,172.62,172.47,10.89948973]
[1747380036281,3.8957,172.62,172.48,115.6]
[1747380036482,3.8957,172.62,172.48,119.5493]
[1747380036679,3.8957,172.62,172.48,3.9493]
[1747380036878,1.9491,172.62,172.49,10.88027156]
[1747380037078,1.9491,172.62,172.48,3.9493]
[1747380037381,1.9491,172.62,172.49,10.88027156]
[1747380037781,5.792,172.61,172.53,5.7946]
[1747380038077,1.9491,172.62,172.52,10.88027156]
[1747380038377,1.8199,172.63,172.49,12.70557156]
[1747380038585,3.6656,172.63,172.49,12.70557156]
[1747380040184,3.6656,172.63,172.49,1.8253]
[1747380041279,3.6656,172.63,172.46,119.0]
[1747380041479,10.88027156,172.61,172.46,119.0]
[1747380041680,10.88027156,172.61,172.47,5.7967]
[1747380041880,10.88027156,172.61,172.46,119.0]
[1747380042388,10.88027156,172.61,172.43,120.86]
[1747380043485,120.2,172.6,172.43,120.86]
[1747380043689,5.794,172.56,172.49,5.7957]
[1747380043889,120.2,172.6,172.43,120.86]
[1747380044290,5.7941,172.55,172.43,120.86]
[1747380044591,120.2,172.6,172.45,10.88027156]
[1747380044793,5.7937,172.57,172.45,10.88027156]
[1747380045294,5.7931,172.58,172.52,5.795]
[1747380045497,120.2,172.6,172.45,10.88027156]
[1747380045793,5.7947,172.53,172.48,5.7964]
[1747380045993,120.2,172.6,172.42,124.7966]
[1747380046795,5.7956,172.51,172.42,124.7966]
[1747380047092,119.36,172.53,172.42,124.7966]
[1747380047295,119.36,172.53,172.41,501.34]
[1747380047496,5.7964,172.49,172.43,5.798]
[1747380047890,5.7167,172.52,172.39,118.94]
[1747380048291,5.7958,172.5,172.39,118.94]
[1747380048483,5.7167,172.52,172.39,118.94]
[1747380048690,5.7961,172.49,172.44,5.7974]
[1747380048999,5.7167,172.52,172.39,118.94]
[1747380049901,5.796,172.5,172.39,118.94]
[1747380050203,5.7167,172.52,172.39,118.94]
[1747380050601,118.94,172.55,172.4,1.8771]
[1747380050903,118.94,172.55,172.42,10.88027156]
[1747380051098,118.94,172.55,172.43,1.8847]
[1747380051497,5.7948,172.53,172.43,1.8847]
[1747380051694,118.94,172.55,172.43,1.8847]
[1747380052204,124.7341,172.55,172.43,1.8847]
[1747380052604,124.7341,172.55,172.5,5.7955]
[1747380052901,5.7945,172.54,172.5,5.7955]
[1747380053201,118.94,172.55,172.51,5.7953]
[1747380053399,124.7341,172.55,172.51,5.7953]
[1747380053806,118.94,172.55,172.52,5.7947]
[1747380054004,118.94,172.55,172.43,1.8847]
[1747380055005,124.7343,172.55,172.43,1.8847]
[1747380055303,118.94,172.55,172.43,1.8847]
[1747380055500,5.6352,172.61,172.43,1.8847]
[1747380055704,5.7938,172.56,172.43,1.8847]
[1747380055900,5.6352,172.61,172.43,1.8847]
[1747380056105,116.02,172.6,172.51,5.7951]
[1747380056305,116.02,172.6,172.43,1.8847]
[1747380056503,116.02,172.6,172.44,115.88]
[1747380057504,116.02,172.6,172.46,10.88027156]
[1747380057709,115.46,172.6,172.46,126.34027156]
[1747380058006,115.46,172.6,172.46,115.46]
[1747380058206,5.795,172.53,172.49,5.7958]
[1747380058508,5.795,172.53,172.46,115.46]
[1747380058805,115.46,172.6,172.46,115.46]
[1747380058999,115.46,172.6,172.44,115.88]
[1747380059000,126.34027156,172.6,172.43,1.8847]
[1747380059208,5.7961,172.5,172.43,1.8847]
[1747380059700,5.7961,172.5,172.46,5.7968]
[1747380059909,115.76,172.53,172.43,1.8847]
[1747380060401,5.7951,172.52,172.43,1.8847]
[1747380060596,115.76,172.53,172.43,1.8847]
[1747380060794,10.88027156,172.6,172.43,12.76497156]
[1747380060795,115.3,172.56,172.43,12.76497156]
[1747380061200,115.2,172.59,172.43,12.76497156]
[1747380061396,115.2,172.59,172.46,10.88027156]
[1747380061601,5.7941,172.55,172.46,10.88027156]
[1747380061912,115.12,172.59,172.46,10.88027156]
[1747380062111,1.9103,172.61,172.47,115.44]
[1747380062412,1.903,172.63,172.5,10.88027156]
[1747380062598,1.903,172.63,172.51,3.8043]
[1747380062802,313.82439925,172.66,172.54,10.88027156]
[1747380062803,194.40919925,172.66,172.54,10.88027156]
[1747380063107,200.19979925,172.66,172.61,5.7918]
[1747380063405,194.40919925,172.66,172.55,1.883]
[1747380063706,115.26,172.69,172.55,1.883]
[1747380064011,3.9823,172.72,172.59,10.88027156]
[1747380064210,1.9782,172.72,172.6,1.905]
[1747380064408,1.9711,172.74,172.6,1.905]
[1747380064605,1.9711,172.74,172.61,120.8193]
[1747380064799,118.88,172.79,172.63,10.88027156]
[1747380065010,122.8512,172.84,172.62,10.88027156]
[1747380065308,3.9712,172.84,172.65,10.88027156]
[1747380065512,121.92,172.83,172.66,1.9332]
[1747380065813,121.92,172.83,172.69,10.88027156]
[1747380066114,121.92,172.83,172.7,1.9372]
[1747380066312,121.92,172.83,172.67,118.88]
[1747380066611,10.88027156,172.81,172.64,10.88027156]
[1747380067207,10.88027156,172.81,172.63,124.0972]
[1747380068106,10.88027156,172.77,172.61,1.8993]
[1747380068310,746.3272,172.76,172.57,124.0119]
[1747380068707,746.3272,172.76,172.6,5.7921]
[1747380068915,746.3272,172.76,172.57,124.0119]
[1747380069113,5.7901,172.67,172.57,124.0119]
[1747380069416,121.68,172.69,172.57,124.0119]
[1747380069619,5.7897,172.68,172.62,5.7914]
[1747380070019,121.7,172.71,172.57,124.0119]
[1747380070220,5.7905,172.66,172.59,5.7924]
[1747380070418,1.8196,172.7,172.59,5.7924]
[1747380070713,1.8196,172.7,172.57,124.0119]
[1747380071212,5.789,172.7,172.6,10.88027156]
[1747380071414,121.78,172.72,172.6,10.88027156]
[1747380071716,121.78,172.72,172.57,124.0119]
[1747380071919,121.78,172.72,172.57,134.89217156]
[1747380072324,5.7896,172.69,172.64,5.7909]
[1747380072519,121.78,172.72,172.57,134.89217156]
[1747380073117,121.78,172.72,172.57,124.0119]
[1747380074322,121.78,172.72,172.6,5.7923]
[1747380074515,121.78,172.72,172.57,124.0119]
[1747380074715,5.7903,172.67,172.57,124.0119]
[1747380075010,121.78,172.72,172.57,124.0119]
[1747380076317,10.88027156,172.71,172.56,3.8384]
[1747380076622,10.88027156,172.71,172.57,5.7931]
[1747380076921,5.7916,172.63,172.56,3.8384]
[1747380077122,120.02,172.65,172.56,3.8384]
[1747380078126,120.02,172.65,172.59,5.7924]
[1747380078618,120.02,172.65,172.56,3.8384]
[1747380079025,122.1,172.67,172.56,3.8384]
[1747380079227,247.11,172.67,172.56,3.8384]
[1747380079526,122.1,172.67,172.58,10.88027156]
[1747380080325,122.1,172.67,172.64,5.791]
[1747380081521,122.1,172.67,172.58,10.86992267]
[1747380081717,5.7894,172.69,172.58,10.86992267]
[1747380082323,5.7891,172.7,172.58,10.86992267]
[1747380082519,118.72,172.73,172.58,129.58992267]
[1747380082720,5.7892,172.7,172.66,5.7901]
[1747380083124,117.68,172.72,172.66,5.7901]
[1747380083326,1.992,172.74,172.66,5.7901]
[1747380083623,1.992,172.74,172.6,1.9987]
[1747380083820,235.92,172.73,172.6,1.9987]
[1747380084416,1.992,172.74,172.6,1.9987]
[1747380084621,619.32,172.76,172.72,5.7881]
[1747380085321,619.32,172.76,172.73,5.788]
[1747380085620,124.507,172.76,172.63,10.86772363]
[1747380086217,118.72,172.76,172.63,10.86772363]
[1747380086423,118.72,172.76,172.67,10.86772363]
[1747380086623,118.72,172.76,172.68,5.8607]
[1747380087131,118.72,172.76,172.73,5.7878]
[1747380087429,118.72,172.76,172.68,5.8607]
[1747380087729,118.72,172.76,172.74,5.7877]
[1747380088632,118.72,172.76,172.75,5.7873]
[1747380088932,242.5585,172.82,172.7,10.86772363]
[1747380089123,120.6333,172.82,172.78,5.7862]
[1747380089429,126.4186,172.82,172.78,5.7862]
[1747380089632,118.7,172.82,172.7,10.86772363]
[1747380090131,5.7856,172.81,172.77,5.7866]
[1747380090431,118.7,172.82,172.7,10.86772363]
[1747380090630,5.7858,172.8,172.7,10.86772363]
[1747380091127,118.7,172.82,172.7,10.86772363]
[1747380091332,118.7,172.82,172.68,5.8607]
[1747380091528,118.7,172.82,172.71,5.7884]
[1747380091932,118.7,172.82,172.65,115.42]
[1747380092233,10.86772363,172.8,172.63,5.6544]
[1747380092429,5.7838,172.79,172.63,5.6544]
[1747380092626,3.9186,172.79,172.63,5.6544]
[1747380092932,120.7238,172.79,172.63,5.6544]
[1747380093131,5.7879,172.74,172.63,5.6544]
[1747380093333,120.7238,172.79,172.63,5.6544]
[1747380093734,5.7886,172.72,172.67,5.7899]
[1747380094134,5.7886,172.72,172.63,5.6544]
[1747380094432,5.7891,172.7,172.63,5.6544]
[1747380094630,5.7891,172.7,172.62,126.28772363]
[1747380094832,114.2,172.72,172.62,126.28772363]
[1747380095430,114.2,172.72,172.68,5.7894]
[1747380095729,114.2,172.72,172.62,126.28772363]
[1747380096038,114.2,172.72,172.66,5.7903]
[1747380096537,114.2,172.72,172.67,5.79]
[1747380096735,114.2,172.72,172.62,126.28772363]
[1747380096932,119.9887,172.72,172.62,126.28772363]
[1747380097133,114.2,172.72,172.59,5.6765]
[1747380097333,114.2,172.72,172.59,121.1165]
[1747380097534,114.2,172.72,172.66,5.7903]
[1747380097732,114.2,172.72,172.59,121.1165]
[1747380097940,5.7893,172.7,172.59,121.1165]
[1747380098129,114.2,172.72,172.59,121.1165]
[1747380098935,115.42,172.74,172.59,121.1165]
[1747380098936,115.42,172.74,172.62,10.86772363]
[1747380099138,115.44,172.79,172.66,10.86772363]
[1747380099334,115.44,172.79,172.66,126.30772363]
[1747380099542,5.7864,172.78,172.67,1.8569]
[1747380099742,115.44,172.79,172.67,1.8569]
[1747380100041,5.7873,172.76,172.67,1.8569]
[1747380100244,5.7873,172.76,172.72,5.7883]
[1747380100841,115.44,172.79,172.67,1.8569]
[1747380101845,115.44,172.79,172.73,5.7879]
[1747380102046,115.44,172.79,172.67,1.8569]
[1747380102445,121.226,172.79,172.67,1.8569]
[1747380102743,111.28,172.82,172.7,10.86772363]
[1747380102950,5.7857,172.8,172.7,10.86772363]
[1747380103351,5.7866,172.78,172.74,5.7876]
[1747380103749,111.28,172.82,172.68,3.7367]
[1747380103950,5.7869,172.77,172.73,5.7877]
[1747380104251,5.7869,172.77,172.68,3.7367]
[1747380104549,5.7868,172.77,172.73,5.7879]
[1747380104948,111.28,172.82,172.68,3.7367]
[1747380105149,111.28,172.82,172.67,1.8569]
[1747380105750,111.28,172.82,172.71,5.7884]
[1747380105952,111.28,172.82,172.67,1.8569]
[1747380106149,5.787,172.76,172.71,5.7886]
[1747380106448,111.28,172.82,172.71,5.7886]
[1747380106649,10.86772363,172.81,172.66,115.44]
[1747380108146,111.28,172.82,172.66,126.30772363]
[1747380108750,5.7864,172.78,172.74,5.7875]
[1747380110052,5.7861,172.79,172.75,5.7872]
[1747380110255,111.28,172.82,172.66,126.30772363]
[1747380110448,5.7866,172.78,172.74,5.7876]
[1747380110649,111.28,172.82,172.66,126.30772363]
[1747380110952,1.9509,172.83,172.66,126.30772363]
[1747380111151,1.9509,172.83,172.7,10.86772363]
[1747380111548,5.7852,172.82,172.78,5.786]
[1747380112048,5.7857,172.8,172.71,5.6246]
[1747380112242,111.3509,172.83,172.71,5.6246]
[1747380112446,111.3509,172.83,172.67,11.5801]
[1747380112653,5.7864,172.78,172.74,5.7874]
[1747380112845,5.7864,172.78,172.67,11.5801]
[1747380113153,5.7863,172.79,172.75,5.7871]
[1747380113453,111.3509,172.83,172.67,11.5801]
[1747380113654,217.76,172.82,172.67,11.5801]
[1747380113849,217.76,172.82,172.76,5.7868]
[1747380114255,5.7858,172.8,172.77,5.7867]
[1747380114550,217.76,172.82,172.67,11.5801]
[1747380114754,217.76,172.82,172.7,10.86772363]
[1747380115755,1.8086,172.85,172.74,10.86772363]
[1747380115952,1.8086,172.85,172.79,5.7859]
[1747380116149,1.8086,172.85,172.73,108.94]
[1747380116654,5.786,172.8,172.75,5.7873]
[1747380116856,1.8086,172.85,172.75,5.7873]
[1747380117050,5.786,172.8,172.7,119.80772363]
[1747380117558,5.786,172.8,172.76,5.7869]
[1747380117856,5.7861,172.79,172.7,119.80772363]
[1747380118059,1.8086,172.85,172.7,119.80772363]
[1747380118554,1.8086,172.85,172.76,5.7868]
[1747380118853,1.8086,172.85,172.7,119.80772363]
[1747380119059,108.9886,172.85,172.7,119.80772363]
[1747380119559,1.8086,172.85,172.7,119.80772363]
[1747380119967,5.7857,172.8,172.76,5.7867]
[1747380120457,5.7863,172.79,172.74,5.7874]
[1747380120664,1.8086,172.85,172.74,5.7874]
[1747380120855,1.8086,172.85,172.7,119.80772363]
[1747380121064,5.7873,172.76,172.72,5.7881]
[1747380121256,5.7873,172.76,172.7,108.94]
[1747380121463,106.64,172.8,172.7,108.94]
[1747380121760,106.64,172.8,172.7,119.80772363]
[1747380122162,112.4259,172.8,172.7,119.80772363]
[1747380122364,106.64,172.8,172.7,119.80772363]
[1747380122663,5.7865,172.78,172.74,5.7875]
[1747380122968,106.64,172.8,172.7,108.94]
[1747380123158,5.7869,172.77,172.73,5.7878]
[1747380123359,106.64,172.8,172.73,5.7878]
[1747380123560,108.6215,172.8,172.68,5.8447]
[1747380123864,110.497,172.8,172.68,5.8447]
[1747380124164,110.497,172.8,172.65,105.8]
[1747380124365,110.497,172.8,172.7,5.789]
[1747380124564,110.497,172.8,172.65,105.8]
[1747380125370,10.86772363,172.79,172.65,105.8]
[1747380125664,10.86772363,172.79,172.63,3.7214]
[1747380126362,10.86772363,172.79,172.6,212.9408]
[1747380126569,5.7896,172.69,172.64,5.7909]
[1747380126968,5.7896,172.69,172.6,212.9408]
[1747380127565,5.7898,172.68,172.64,5.791]
[1747380128071,109.0066,172.72,172.6,212.9408]
[1747380128467,3.7666,172.72,172.6,212.9408]
[1747380128664,5.7888,172.71,172.67,5.7898]
[1747380129070,3.7666,172.72,172.6,212.9408]
[1747380129766,5.7895,172.69,172.6,212.9408]
[1747380130571,3.7666,172.72,172.6,212.9408]
[1747380130770,104.14,172.74,172.6,212.9408]
[1747380131071,5.7882,172.73,172.6,212.9408]
[1747380131571,105.82,172.75,172.63,10.86772363]
[1747380131773,105.82,172.75,172.64,1.8234]
[1747380131968,105.82,172.75,172.72,5.7881]
[1747380132270,103.84,172.77,172.64,1.8234]
[1747380132669,5.787,172.76,172.64,1.8234]
[1747380132977,5.787,172.76,172.73,5.788]
[1747380133268,103.84,172.77,172.64,1.8234]
[1747380134181,5.7882,172.73,172.69,5.7893]
[1747380134366,103.84,172.77,172.69,5.7893]
[1747380134866,103.84,172.77,172.64,1.8234]
[1747380135872,1.8388,172.78,172.71,5.7885]
[1747380136088,104.3588,172.78,172.64,1.8234]
[1747380136974,5.7885,172.72,172.64,1.8234]
[1747380137166,5.7885,172.72,172.68,5.7897]
[1747380137364,104.3588,172.78,172.64,1.8234]
[1747380137568,5.789,172.71,172.64,1.8234]
[1747380137769,104.3588,172.78,172.67,5.7898]
[1747380138480,5.7893,172.7,172.66,5.7903]
[1747380138777,101.62,172.72,172.6,104.5408]
[1747380138979,5.7895,172.69,172.65,5.7905]
[1747380139174,5.7895,172.69,172.6,104.5408]
[1747380139376,101.62,172.72,172.6,104.5408]
[1747380139677,101.62,172.72,172.67,5.79]
[1747380139979,101.62,172.72,172.6,104.5408]
[1747380140582,5.7894,172.69,172.66,5.7903]
[1747380140881,101.62,172.72,172.6,104.5408]
[1747380141081,5.7891,172.7,172.67,5.79]
[1747380141388,5.7891,172.7,172.6,104.5408]
[1747380141680,5.7891,172.7,172.67,5.79]
[1747380142077,5.7891,172.7,172.6,104.5408]
[1747380142277,5.7894,172.69,172.65,5.7905]
[1747380142781,5.7898,172.68,172.65,5.7905]
[1747380142982,101.62,172.72,172.65,5.7905]
[1747380143481,5.7896,172.69,172.65,5.7905]
[1747380144184,5.7891,172.7,172.66,5.7904]
[1747380144384,101.62,172.72,172.6,104.5408]
[1747380144785,107.4086,172.72,172.68,5.7895]
[1747380144986,101.62,172.72,172.68,5.7895]
[1747380145389,101.62,172.72,172.67,5.7899]
[1747380145886,101.62,172.72,172.65,5.7904]
[1747380146087,101.62,172.72,172.6,104.5408]
[1747380146591,5.7893,172.7,172.6,104.5408]